[Event "Early-Titled-Tuesday-Blitz-March-05-2024"]
[Site "Chess.com"]
[Date "2024.03.05"]
[Round "9"]
[White "PositionalPanther"]
[Black "Hope_6"]
[Result "1-0"]
[WhiteElo "2623"]
[BlackElo "2795"]
[TimeControl "180+1"]
[EndTime "9:46:30 PST"]
[Termination "PositionalPanther won by resignation"]

1. d4 {[%clk 0:03:00.9]} 1... d5 {[%clk 0:02:59.5]} 2. Nf3 {[%clk 0:02:59.6]}
2... Nf6 {[%clk 0:02:59.4]} 3. c3 {[%clk 0:02:59.5]} 3... c6 {[%clk 0:02:57.2]}
4. Qc2 {[%clk 0:02:57.9]} 4... Bg4 {[%clk 0:02:54.4]} 5. Ne5 {[%clk 0:02:55.4]}
5... Bh5 {[%clk 0:02:54.5]} 6. Qf5 {[%clk 0:02:50]} 6... Bg6 {[%clk 0:02:47.9]}
7. Qh3 {[%clk 0:02:39.4]} 7... Nbd7 {[%clk 0:02:32]} 8. Nxg6 {[%clk 0:02:37.9]}
8... fxg6 {[%clk 0:02:32.9]} 9. Bf4 {[%clk 0:02:20.2]} 9... Qb6 {[%clk
0:02:31.4]} 10. b3 {[%clk 0:02:16.7]} 10... Ne4 {[%clk 0:02:20.1]} 11. Qd3
{[%clk 0:02:09.9]} 11... e5 {[%clk 0:02:18.8]} 12. Be3 {[%clk 0:02:06.2]} 12...
exd4 {[%clk 0:02:17.6]} 13. Bxd4 {[%clk 0:02:02.4]} 13... Bc5 {[%clk 0:02:17.5]}
14. f3 {[%clk 0:01:52.9]} 14... Nef6 {[%clk 0:02:09.2]} 15. Qe3+ {[%clk
0:01:43.6]} 15... Kf7 {[%clk 0:02:08.6]} 16. b4 {[%clk 0:01:38.9]} 16... Bxd4
{[%clk 0:01:58.7]} 17. Qxd4 {[%clk 0:01:39.8]} 17... Rhe8 {[%clk 0:01:58.5]} 18.
Qxb6 {[%clk 0:01:33.7]} 18... axb6 {[%clk 0:01:58]} 19. Kf2 {[%clk 0:01:32]}
19... b5 {[%clk 0:01:48.5]} 20. Nd2 {[%clk 0:01:29.6]} 20... Ra3 {[%clk
0:01:46.7]} 21. Nb1 {[%clk 0:01:23.3]} 21... Ra7 {[%clk 0:01:45.6]} 22. e3
{[%clk 0:01:18.1]} 22... Rea8 {[%clk 0:01:45.6]} 23. a3 {[%clk 0:01:18.2]} 23...
Nb6 {[%clk 0:01:44.4]} 24. Ra2 {[%clk 0:01:11.9]} 24... Nfd7 {[%clk 0:01:44.3]}
25. h4 {[%clk 0:01:01.6]} 25... Ne5 {[%clk 0:01:44.2]} 26. h5 {[%clk 0:00:59]}
26... g5 {[%clk 0:01:37.1]} 27. h6 {[%clk 0:00:59.2]} 27... Nec4 {[%clk
0:01:30.5]} 28. hxg7 {[%clk 0:00:55.8]} 28... Kxg7 {[%clk 0:01:30.7]} 29. Bxc4
{[%clk 0:00:44.6]} 29... Nxc4 {[%clk 0:01:31.6]} 30. Re1 {[%clk 0:00:25.5]}
30... Nxa3 {[%clk 0:01:26.4]} 31. Nd2 {[%clk 0:00:25.2]} 31... Nc4 {[%clk
0:01:19.8]} 32. Rxa7 {[%clk 0:00:25.1]} 32... Rxa7 {[%clk 0:01:20.2]} 33. Nxc4
{[%clk 0:00:25]} 33... bxc4 {[%clk 0:01:14.6]} 34. e4 {[%clk 0:00:23.1]} 34...
Kf6 {[%clk 0:01:11.5]} 35. f4 {[%clk 0:00:16.1]} 35... gxf4 {[%clk 0:01:04.2]}
36. Kf3 {[%clk 0:00:14.5]} 36... Ra3 {[%clk 0:01:02.2]} 37. Kxf4 {[%clk
0:00:14.4]} 37... Rxc3 {[%clk 0:01:02.2]} 38. e5+ {[%clk 0:00:14.6]} 38... Ke6
{[%clk 0:00:52.1]} 39. Rh1 {[%clk 0:00:15.2]} 39... Rc1 {[%clk 0:00:47]} 40.
Rxc1 {[%clk 0:00:14.4]} 1-0

[Event "Early-Titled-Tuesday-Blitz-March-05-2024"]
[Site "Chess.com"]
[Date "2024.03.05"]
[Round "9"]
[White "AlexandraSamaganova"]
[Black "David_George21"]
[Result "0-1"]
[WhiteElo "2289"]
[BlackElo "2413"]
[TimeControl "180+1"]
[EndTime "9:46:30 PST"]
[Termination "David_George21 won on time"]

1. c4 {[%clk 0:03:00.9]} 1... c5 {[%clk 0:02:56.7]} 2. Nc3 {[%clk 0:03:00.4]}
2... Nc6 {[%clk 0:02:55.9]} 3. g3 {[%clk 0:03:00.2]} 3... g6 {[%clk 0:02:53.7]}
4. Bg2 {[%clk 0:02:59.8]} 4... Bg7 {[%clk 0:02:53.6]} 5. a3 {[%clk 0:02:55.9]}
5... d6 {[%clk 0:02:44]} 6. Rb1 {[%clk 0:02:55.2]} 6... a5 {[%clk 0:02:43.2]} 7.
Nf3 {[%clk 0:02:49.2]} 7... e5 {[%clk 0:02:42.2]} 8. O-O {[%clk 0:02:49.3]} 8...
Nge7 {[%clk 0:02:41.8]} 9. Ne1 {[%clk 0:02:49.6]} 9... O-O {[%clk 0:02:37.9]}
10. Nc2 {[%clk 0:02:49.4]} 10... f5 {[%clk 0:02:35.6]} 11. b4 {[%clk 0:02:47.6]}
11... axb4 {[%clk 0:02:17.3]} 12. axb4 {[%clk 0:02:47.5]} 12... e4 {[%clk
0:02:18.1]} 13. Nd5 {[%clk 0:02:26.9]} 13... Be6 {[%clk 0:02:00.3]} 14. bxc5
{[%clk 0:02:01.7]} 14... dxc5 {[%clk 0:01:31.3]} 15. Nxe7+ {[%clk 0:01:51.9]}
15... Qxe7 {[%clk 0:01:30.4]} 16. Ne3 {[%clk 0:01:50]} 16... Rfd8 {[%clk
0:01:27.5]} 17. Qb3 {[%clk 0:01:35.9]} 17... Nd4 {[%clk 0:01:25.2]} 18. Qxb7
{[%clk 0:01:31.5]} 18... Nxe2+ {[%clk 0:01:20]} 19. Kh1 {[%clk 0:01:30.8]} 19...
Qxb7 {[%clk 0:01:11.1]} 20. Rxb7 {[%clk 0:01:31.7]} 20... Nxc1 {[%clk
0:01:11.3]} 21. Rxc1 {[%clk 0:01:31.4]} 21... Rxd2 {[%clk 0:01:11.1]} 22. Kg1
{[%clk 0:00:43.2]} 22... Bd4 {[%clk 0:00:59.7]} 23. Re7 {[%clk 0:00:24.7]} 23...
Bf7 {[%clk 0:00:54.7]} 24. Nd1 {[%clk 0:00:08.8]} 24... Raa2 {[%clk 0:00:44.7]}
25. Bf1 {[%clk 0:00:05.4]} 25... Rac2 {[%clk 0:00:18.3]} 26. Rxc2 {[%clk
0:00:05]} 26... Rxc2 {[%clk 0:00:19.2]} 27. Rc7 {[%clk 0:00:02.8]} 27... Rc1
{[%clk 0:00:18.6]} 28. Ne3 {[%clk 0:00:02.6]} 28... Bxe3 {[%clk 0:00:18.8]} 29.
fxe3 {[%clk 0:00:02.4]} 29... Bxc4 {[%clk 0:00:19.4]} 30. Kg2 {[%clk 0:00:02.1]}
30... Bxf1+ {[%clk 0:00:19.1]} 31. Kf2 {[%clk 0:00:02.3]} 31... Bd3 {[%clk
0:00:19.2]} 32. h4 {[%clk 0:00:01.7]} 32... c4 {[%clk 0:00:19.3]} 33. h5 {[%clk
0:00:01.6]} 33... gxh5 {[%clk 0:00:19.3]} 34. Rc5 {[%clk 0:00:01.5]} 34... c3
{[%clk 0:00:18.5]} 35. Kg2 {[%clk 0:00:01.3]} 35... c2 {[%clk 0:00:18.1]} 0-1

[Event "Early-Titled-Tuesday-Blitz-March-05-2024"]
[Site "Chess.com"]
[Date "2024.03.05"]
[Round "9"]
[White "Muracle"]
[Black "GelmanAlexander"]
[Result "1-0"]
[WhiteElo "2550"]
[BlackElo "2666"]
[TimeControl "180+1"]
[EndTime "9:46:31 PST"]
[Termination "Muracle won on time"]

1. d4 {[%clk 0:02:59.5]} 1... Nf6 {[%clk 0:02:59.8]} 2. Nf3 {[%clk 0:03:00.1]}
2... c5 {[%clk 0:03:00.2]} 3. d5 {[%clk 0:03:00.1]} 3... e6 {[%clk 0:03:00.5]}
4. c4 {[%clk 0:03:00.2]} 4... b5 {[%clk 0:03:00.9]} 5. Nc3 {[%clk 0:02:59.3]}
5... b4 {[%clk 0:03:01]} 6. Na4 {[%clk 0:02:58.3]} 6... exd5 {[%clk 0:02:55.9]}
7. cxd5 {[%clk 0:02:59.2]} 7... d6 {[%clk 0:02:56.3]} 8. Bg5 {[%clk 0:02:50.7]}
8... Be7 {[%clk 0:02:53.6]} 9. e3 {[%clk 0:02:47.2]} 9... h6 {[%clk 0:02:51.8]}
10. Bh4 {[%clk 0:02:45.7]} 10... O-O {[%clk 0:02:51.3]} 11. Bc4 {[%clk
0:02:45.5]} 11... Nbd7 {[%clk 0:02:37.8]} 12. O-O {[%clk 0:02:42.6]} 12... Nb6
{[%clk 0:02:27.6]} 13. Nxb6 {[%clk 0:02:41.6]} 13... axb6 {[%clk 0:02:28.5]} 14.
Qd3 {[%clk 0:02:36.1]} 14... Bg4 {[%clk 0:02:07.9]} 15. e4 {[%clk 0:02:32.2]}
15... Bxf3 {[%clk 0:02:03.9]} 16. Qxf3 {[%clk 0:02:33.1]} 16... Nd7 {[%clk
0:01:59.5]} 17. Bxe7 {[%clk 0:02:28.4]} 17... Qxe7 {[%clk 0:01:59.7]} 18. Bb5
{[%clk 0:02:29.1]} 18... Ne5 {[%clk 0:01:54.9]} 19. Qe2 {[%clk 0:02:27.2]} 19...
Ra5 {[%clk 0:01:54.6]} 20. a4 {[%clk 0:02:25.6]} 20... bxa3 {[%clk 0:01:53.8]}
21. bxa3 {[%clk 0:02:24.3]} 21... g5 {[%clk 0:01:44.9]} 22. a4 {[%clk
0:02:21.8]} 22... Ng6 {[%clk 0:01:38.2]} 23. Rae1 {[%clk 0:02:17.3]} 23... Ra7
{[%clk 0:01:35.4]} 24. g3 {[%clk 0:02:15.7]} 24... Qe5 {[%clk 0:01:34.6]} 25.
Qh5 {[%clk 0:02:14.1]} 25... Kg7 {[%clk 0:01:33.6]} 26. f4 {[%clk 0:01:53.8]}
26... gxf4 {[%clk 0:01:14.8]} 27. Qxe5+ {[%clk 0:01:52.2]} 27... dxe5 {[%clk
0:01:15.7]} 28. Rd1 {[%clk 0:01:45.6]} 28... Kf6 {[%clk 0:01:14.2]} 29. d6
{[%clk 0:01:41.6]} 29... Rd8 {[%clk 0:01:13.9]} 30. Kg2 {[%clk 0:01:32.9]} 30...
Ke6 {[%clk 0:01:08.2]} 31. Bc4+ {[%clk 0:01:32.3]} 31... Kf6 {[%clk 0:01:08.6]}
32. Bb5 {[%clk 0:01:32]} 32... h5 {[%clk 0:00:49.7]} 33. Rd5 {[%clk 0:01:26.4]}
33... h4 {[%clk 0:00:49.1]} 34. Kh3 {[%clk 0:01:21.2]} 34... hxg3 {[%clk
0:00:46.6]} 35. hxg3 {[%clk 0:01:22.1]} 35... Ke6 {[%clk 0:00:43]} 36. Rfd1
{[%clk 0:01:14.6]} 36... fxg3 {[%clk 0:00:36.8]} 37. Kxg3 {[%clk 0:01:08.4]}
37... Nf4 {[%clk 0:00:37]} 38. R5d2 {[%clk 0:01:08.3]} 38... Rg8+ {[%clk
0:00:35]} 39. Kf3 {[%clk 0:01:08.5]} 39... Rh8 {[%clk 0:00:30.6]} 40. d7 {[%clk
0:01:06.7]} 40... Rd8 {[%clk 0:00:26.1]} 41. Rd6+ {[%clk 0:01:07.6]} 41... Ke7
{[%clk 0:00:26.2]} 42. Rxb6 {[%clk 0:01:06.8]} 42... Ne6 {[%clk 0:00:26.2]} 43.
Rd5 {[%clk 0:01:05.4]} 43... f6 {[%clk 0:00:22]} 44. Rdd6 {[%clk 0:00:59]} 44...
Ng5+ {[%clk 0:00:19.8]} 45. Ke3 {[%clk 0:00:58.7]} 45... Nf7 {[%clk 0:00:11.5]}
46. Rxf6 {[%clk 0:00:58]} 46... Rdxd7 {[%clk 0:00:08.5]} 47. Rbe6+ {[%clk
0:00:55.7]} 47... Kf8 {[%clk 0:00:08.7]} 48. Bxd7 {[%clk 0:00:55]} 48... Rxd7
{[%clk 0:00:09.6]} 49. a5 {[%clk 0:00:55.2]} 49... Ra7 {[%clk 0:00:07.7]} 50. a6
{[%clk 0:00:55.4]} 50... Kg7 {[%clk 0:00:08.3]} 51. Rg6+ {[%clk 0:00:55.7]}
51... Kf8 {[%clk 0:00:08.5]} 52. Rb6 {[%clk 0:00:55.3]} 52... Ke7 {[%clk
0:00:08.6]} 53. Rb7+ {[%clk 0:00:55.6]} 1-0

[Event "Early-Titled-Tuesday-Blitz-March-05-2024"]
[Site "Chess.com"]
[Date "2024.03.05"]
[Round "9"]
[White "NM_Antelacus"]
[Black "Matols"]
[Result "1-0"]
[WhiteElo "2286"]
[BlackElo "2374"]
[TimeControl "180+1"]
[EndTime "9:46:34 PST"]
[Termination "NM_Antelacus won on time"]

1. e4 {[%clk 0:03:00.9]} 1... c6 {[%clk 0:03:00]} 2. d4 {[%clk 0:03:00]} 2... d5
{[%clk 0:03:00.5]} 3. e5 {[%clk 0:03:00.5]} 3... c5 {[%clk 0:03:00.5]} 4. dxc5
{[%clk 0:02:59.7]} 4... e6 {[%clk 0:03:01.1]} 5. Be3 {[%clk 0:02:58.4]} 5... Nd7
{[%clk 0:03:00.3]} 6. Nf3 {[%clk 0:02:55.2]} 6... Bxc5 {[%clk 0:02:57.7]} 7.
Bxc5 {[%clk 0:02:53.5]} 7... Nxc5 {[%clk 0:02:58.6]} 8. Bd3 {[%clk 0:02:46.4]}
8... Nxd3+ {[%clk 0:02:57]} 9. cxd3 {[%clk 0:02:46]} 9... Qb6 {[%clk 0:02:47.3]}
10. Qd2 {[%clk 0:02:37.9]} 10... Ne7 {[%clk 0:02:45.4]} 11. O-O {[%clk
0:02:36.7]} 11... O-O {[%clk 0:02:44.9]} 12. Nc3 {[%clk 0:02:36.3]} 12... Bd7
{[%clk 0:02:44.3]} 13. Rac1 {[%clk 0:02:33.4]} 13... Rfc8 {[%clk 0:02:42.5]} 14.
b3 {[%clk 0:02:26]} 14... a5 {[%clk 0:02:41.4]} 15. Ne2 {[%clk 0:02:16.9]} 15...
Bb5 {[%clk 0:02:35.8]} 16. Ned4 {[%clk 0:02:15.9]} 16... a4 {[%clk 0:02:26.9]}
17. b4 {[%clk 0:02:13.8]} 17... Nc6 {[%clk 0:02:20.9]} 18. Nxc6 {[%clk
0:02:08.8]} 18... Rxc6 {[%clk 0:02:16.4]} 19. Rxc6 {[%clk 0:02:06.4]} 19... bxc6
{[%clk 0:02:03.3]} 20. Rc1 {[%clk 0:02:04.6]} 20... h6 {[%clk 0:01:51.7]} 21. a3
{[%clk 0:02:03]} 21... Qa6 {[%clk 0:01:44.4]} 22. d4 {[%clk 0:01:55.6]} 22...
Bc4 {[%clk 0:01:44.8]} 23. Qf4 {[%clk 0:01:48.5]} 23... Be2 {[%clk 0:01:33]} 24.
Ne1 {[%clk 0:01:40.6]} 24... Rc8 {[%clk 0:01:28.1]} 25. h4 {[%clk 0:01:38.8]}
25... Bd3 {[%clk 0:01:14.7]} 26. Qe3 {[%clk 0:01:36.6]} 26... Be4 {[%clk
0:01:02.4]} 27. Rc3 {[%clk 0:01:29.8]} 27... Qb7 {[%clk 0:00:55.2]} 28. Kh2
{[%clk 0:01:28.1]} 28... Qe7 {[%clk 0:00:54.7]} 29. Qg3 {[%clk 0:01:26.5]} 29...
f6 {[%clk 0:00:49.2]} 30. f3 {[%clk 0:01:22.9]} 30... Bf5 {[%clk 0:00:47.7]} 31.
Re3 {[%clk 0:01:17]} 31... Qf7 {[%clk 0:00:41.2]} 32. exf6 {[%clk 0:01:03.5]}
32... Qxf6 {[%clk 0:00:40.8]} 33. Re5 {[%clk 0:01:03.6]} 33... Rf8 {[%clk
0:00:37.7]} 34. Qf2 {[%clk 0:00:51.8]} 34... Qg6 {[%clk 0:00:33.3]} 35. g3
{[%clk 0:00:47.8]} 35... Qf6 {[%clk 0:00:28.6]} 36. Ng2 {[%clk 0:00:45]} 36...
g5 {[%clk 0:00:20.4]} 37. Ne3 {[%clk 0:00:34.9]} 37... Kg7 {[%clk 0:00:19.3]}
38. h5 {[%clk 0:00:26.9]} 38... Bd3 {[%clk 0:00:17.2]} 39. Kg2 {[%clk
0:00:24.7]} 39... Rf7 {[%clk 0:00:14.6]} 40. Ng4 {[%clk 0:00:24.3]} 40... Qe7
{[%clk 0:00:02.5]} 41. Qe3 {[%clk 0:00:24.3]} 1-0

[Event "Early-Titled-Tuesday-Blitz-March-05-2024"]
[Site "Chess.com"]
[Date "2024.03.05"]
[Round "9"]
[White "lilleper1"]
[Black "Polish_fighter3000"]
[Result "0-1"]
[WhiteElo "2924"]
[BlackElo "3111"]
[TimeControl "180+1"]
[EndTime "9:46:37 PST"]
[Termination "Polish_fighter3000 won by checkmate"]

1. e4 {[%clk 0:03:00.9]} 1... b6 {[%clk 0:02:59.5]} 2. d4 {[%clk 0:02:59.6]}
2... Bb7 {[%clk 0:03:00.1]} 3. Bd3 {[%clk 0:02:58.9]} 3... e6 {[%clk 0:02:59.5]}
4. Nf3 {[%clk 0:02:57.6]} 4... g6 {[%clk 0:02:59.3]} 5. O-O {[%clk 0:02:56.3]}
5... Bg7 {[%clk 0:02:59.4]} 6. c4 {[%clk 0:02:56.3]} 6... d6 {[%clk 0:02:57.5]}
7. Nc3 {[%clk 0:02:55.7]} 7... Nd7 {[%clk 0:02:57.1]} 8. Be3 {[%clk 0:02:51.8]}
8... Ne7 {[%clk 0:02:56.7]} 9. Qd2 {[%clk 0:02:49.2]} 9... O-O {[%clk
0:02:55.9]} 10. Bh6 {[%clk 0:02:46.7]} 10... e5 {[%clk 0:02:40.4]} 11. Rad1
{[%clk 0:02:41]} 11... a5 {[%clk 0:02:30.5]} 12. b3 {[%clk 0:02:38.5]} 12...
exd4 {[%clk 0:02:09.2]} 13. Bxg7 {[%clk 0:02:38]} 13... Kxg7 {[%clk 0:02:10.1]}
14. Nxd4 {[%clk 0:02:37.7]} 14... Nc6 {[%clk 0:02:10.7]} 15. Ndb5 {[%clk
0:02:32.8]} 15... Na7 {[%clk 0:02:04.9]} 16. Be2 {[%clk 0:02:24.4]} 16... Nxb5
{[%clk 0:02:03.6]} 17. cxb5 {[%clk 0:02:22.7]} 17... Nc5 {[%clk 0:02:03.5]} 18.
Bf3 {[%clk 0:02:06.8]} 18... Qf6 {[%clk 0:01:55]} 19. Rc1 {[%clk 0:02:03.9]}
19... Rae8 {[%clk 0:01:53.8]} 20. Rfe1 {[%clk 0:02:03.1]} 20... h5 {[%clk
0:01:51.6]} 21. h3 {[%clk 0:02:01]} 21... h4 {[%clk 0:01:50.5]} 22. Qd1 {[%clk
0:01:41.7]} 22... Re5 {[%clk 0:01:48]} 23. Re3 {[%clk 0:01:26.2]} 23... Rfe8
{[%clk 0:01:43.7]} 24. Qe2 {[%clk 0:01:21.1]} 24... Ne6 {[%clk 0:01:31.8]} 25.
Na4 {[%clk 0:01:06]} 25... Re7 {[%clk 0:01:14.3]} 26. Rc4 {[%clk 0:00:58.4]}
26... Ng5 {[%clk 0:00:42.6]} 27. Nc3 {[%clk 0:00:48.6]} 27... Kg8 {[%clk
0:00:27.8]} 28. Qd3 {[%clk 0:00:43.4]} 28... Ne6 {[%clk 0:00:18]} 29. Na4 {[%clk
0:00:40]} 29... Qg5 {[%clk 0:00:15.4]} 30. Nc3 {[%clk 0:00:31.9]} 30... Nf4
{[%clk 0:00:12.6]} 31. Qd2 {[%clk 0:00:23.4]} 31... Nxh3+ {[%clk 0:00:12.6]} 32.
Kh2 {[%clk 0:00:23.3]} 32... Nf4 {[%clk 0:00:12.8]} 33. Re1 {[%clk 0:00:21.8]}
33... Qf6 {[%clk 0:00:07.9]} 34. Rc1 {[%clk 0:00:17.8]} 34... Ne6 {[%clk
0:00:07.2]} 35. a3 {[%clk 0:00:17.8]} 35... h3 {[%clk 0:00:04.6]} 36. Kxh3
{[%clk 0:00:14.6]} 36... Ng5+ {[%clk 0:00:04.5]} 37. Kg3 {[%clk 0:00:08.3]}
37... Nxf3 {[%clk 0:00:04.4]} 38. gxf3 {[%clk 0:00:09.2]} 38... Rg5+ {[%clk
0:00:04.8]} 39. Kh2 {[%clk 0:00:09.7]} 39... Qh8# {[%clk 0:00:04.9]} 0-1

[Event "Early-Titled-Tuesday-Blitz-March-05-2024"]
[Site "Chess.com"]
[Date "2024.03.05"]
[Round "9"]
[White "subham777"]
[Black "LikeWater"]
[Result "1-0"]
[WhiteElo "2574"]
[BlackElo "2681"]
[TimeControl "180+1"]
[EndTime "9:46:37 PST"]
[Termination "subham777 won on time"]

1. e4 {[%clk 0:03:00.9]} 1... c6 {[%clk 0:02:56.7]} 2. c4 {[%clk 0:02:59.8]}
2... d5 {[%clk 0:02:56.6]} 3. cxd5 {[%clk 0:02:59.1]} 3... cxd5 {[%clk
0:02:57.5]} 4. exd5 {[%clk 0:03:00]} 4... Nf6 {[%clk 0:02:57.8]} 5. Nf3 {[%clk
0:02:58.2]} 5... g6 {[%clk 0:02:56.5]} 6. Nc3 {[%clk 0:02:55]} 6... Bg7 {[%clk
0:02:56.4]} 7. d4 {[%clk 0:02:54.2]} 7... O-O {[%clk 0:02:55.8]} 8. Bc4 {[%clk
0:02:54.7]} 8... Nbd7 {[%clk 0:02:55.2]} 9. d6 {[%clk 0:02:55]} 9... Nb6 {[%clk
0:02:53.3]} 10. dxe7 {[%clk 0:02:50.8]} 10... Qxe7+ {[%clk 0:02:54.2]} 11. Be2
{[%clk 0:02:51.1]} 11... Rd8 {[%clk 0:02:50]} 12. O-O {[%clk 0:02:43.6]} 12...
Bf5 {[%clk 0:02:44.6]} 13. Re1 {[%clk 0:02:41.8]} 13... Rac8 {[%clk 0:02:43.5]}
14. Bc4 {[%clk 0:02:23.6]} 14... Qc7 {[%clk 0:02:11.5]} 15. Bb3 {[%clk
0:02:20.9]} 15... Nc4 {[%clk 0:01:56.8]} 16. Qe2 {[%clk 0:02:13.9]} 16... Re8
{[%clk 0:01:14.6]} 17. Ne5 {[%clk 0:02:07.2]} 17... Nxe5 {[%clk 0:01:02.4]} 18.
dxe5 {[%clk 0:02:07]} 18... Ng4 {[%clk 0:01:02.9]} 19. Nd5 {[%clk 0:01:57.5]}
19... Qc5 {[%clk 0:00:48.7]} 20. Bf4 {[%clk 0:01:33.6]} 20... Nxe5 {[%clk
0:00:32]} 21. Rac1 {[%clk 0:01:22.3]} 21... Qxc1 {[%clk 0:00:19.5]} 22. Bxc1
{[%clk 0:00:48.7]} 22... Nf3+ {[%clk 0:00:13]} 23. gxf3 {[%clk 0:00:41.6]} 23...
Rxe2 {[%clk 0:00:12]} 24. Rxe2 {[%clk 0:00:41.2]} 24... Rxc1+ {[%clk 0:00:12.1]}
25. Kg2 {[%clk 0:00:41.7]} 25... Kf8 {[%clk 0:00:04.8]} 26. Re7 {[%clk
0:00:26.4]} 26... Bd3 {[%clk 0:00:03]} 27. Rxb7 {[%clk 0:00:20.7]} 27... Be5
{[%clk 0:00:03.3]} 28. Ne3 {[%clk 0:00:16.5]} 28... f5 {[%clk 0:00:01.9]} 29.
Rf7+ {[%clk 0:00:15]} 29... Ke8 {[%clk 0:00:02]} 30. Rxa7 {[%clk 0:00:07]} 30...
f4 {[%clk 0:00:02.4]} 31. Ra5 {[%clk 0:00:06.6]} 31... Bc7 {[%clk 0:00:02.1]}
32. Rd5 {[%clk 0:00:04.6]} 32... Be2 {[%clk 0:00:01.7]} 33. Rd2 {[%clk
0:00:04.5]} 1-0

[Event "Early-Titled-Tuesday-Blitz-March-05-2024"]
[Site "Chess.com"]
[Date "2024.03.05"]
[Round "9"]
[White "kinga2008"]
[Black "Shuvalov"]
[Result "1-0"]
[WhiteElo "2434"]
[BlackElo "2534"]
[TimeControl "180+1"]
[EndTime "9:46:37 PST"]
[Termination "kinga2008 won by checkmate"]

1. e4 {[%clk 0:03:00.9]} 1... e6 {[%clk 0:02:59.6]} 2. d4 {[%clk 0:02:56.6]}
2... d5 {[%clk 0:02:59.5]} 3. Nc3 {[%clk 0:02:56.9]} 3... Bb4 {[%clk 0:02:58.7]}
4. e5 {[%clk 0:02:57.5]} 4... c5 {[%clk 0:02:59]} 5. a3 {[%clk 0:02:57.2]} 5...
Bxc3+ {[%clk 0:02:59.3]} 6. bxc3 {[%clk 0:02:57.8]} 6... Ne7 {[%clk 0:02:59.6]}
7. Qg4 {[%clk 0:02:55.1]} 7... Qc7 {[%clk 0:02:59.5]} 8. Qxg7 {[%clk 0:02:53.5]}
8... Rg8 {[%clk 0:02:59.2]} 9. Qxh7 {[%clk 0:02:53.8]} 9... cxd4 {[%clk
0:02:59.8]} 10. Ne2 {[%clk 0:02:50.6]} 10... Nbc6 {[%clk 0:02:59.9]} 11. Qd3
{[%clk 0:02:49.1]} 11... dxc3 {[%clk 0:02:56.8]} 12. f4 {[%clk 0:02:47.5]} 12...
d4 {[%clk 0:02:52]} 13. h4 {[%clk 0:02:41.4]} 13... Bd7 {[%clk 0:02:50.4]} 14.
h5 {[%clk 0:02:41.4]} 14... O-O-O {[%clk 0:02:50.1]} 15. g3 {[%clk 0:02:34]}
15... Kb8 {[%clk 0:02:42.3]} 16. Bg2 {[%clk 0:02:32.6]} 16... Bc8 {[%clk
0:02:42.6]} 17. h6 {[%clk 0:02:31.2]} 17... b6 {[%clk 0:02:39.9]} 18. Rb1 {[%clk
0:02:03.7]} 18... Bb7 {[%clk 0:02:38.5]} 19. h7 {[%clk 0:01:59.4]} 19... Rh8
{[%clk 0:02:38]} 20. Be4 {[%clk 0:01:50.2]} 20... Qc8 {[%clk 0:02:29.3]} 21. a4
{[%clk 0:01:47.9]} 21... Nd5 {[%clk 0:01:33.8]} 22. Ba3 {[%clk 0:01:41]} 22...
f5 {[%clk 0:01:21]} 23. Bxd5 {[%clk 0:01:06.1]} 23... Rxd5 {[%clk 0:01:19.7]}
24. Rh6 {[%clk 0:00:58.6]} 24... Qd7 {[%clk 0:01:17]} 25. Bd6+ {[%clk
0:00:39.8]} 25... Ka8 {[%clk 0:01:15.8]} 26. Kf2 {[%clk 0:00:24.4]} 26... Rxd6
{[%clk 0:01:01.9]} 27. exd6 {[%clk 0:00:21.1]} 27... Rxh7 {[%clk 0:00:46.7]} 28.
Rbh1 {[%clk 0:00:19.2]} 28... Nb4 {[%clk 0:00:40.4]} 29. Qxd4 {[%clk 0:00:02.9]}
29... Bxh1 {[%clk 0:00:37.7]} 30. Rxh7 {[%clk 0:00:02.6]} 30... Qxh7 {[%clk
0:00:34.7]} 31. Qxb4 {[%clk 0:00:03.3]} 31... Qh2+ {[%clk 0:00:30.7]} 32. Ke3
{[%clk 0:00:02.9]} 32... Bc6 {[%clk 0:00:25.4]} 33. Qxc3 {[%clk 0:00:02.6]}
33... Kb7 {[%clk 0:00:24.9]} 34. Qg7+ {[%clk 0:00:03.3]} 34... Ka6 {[%clk
0:00:24.9]} 35. Qc7 {[%clk 0:00:03.7]} 35... Qg2 {[%clk 0:00:20.6]} 36. Kd2
{[%clk 0:00:03.5]} 36... Qd5+ {[%clk 0:00:20]} 37. Ke1 {[%clk 0:00:04.2]} 37...
Bxa4 {[%clk 0:00:19.7]} 38. Nc3 {[%clk 0:00:03.2]} 38... Qa5 {[%clk 0:00:17.3]}
39. Qc8# {[%clk 0:00:03]} 1-0